bitfinex/quotes_BTCUSD_20250108
["timestamp","ask_amount","ask_price","bid_price","bid_amount"]
[1736348587136,8.53e-05,95630.0,95629.0,0.359141]
[1736348587350,8.53e-05,95630.0,95629.0,0.50039832]
[1736348587351,0.00023736,95630.0,95629.0,0.50039832]
[1736348587554,0.00023736,95630.0,95629.0,0.53087912]
[1736348588592,0.00023736,95630.0,95629.0,0.55487912]
[1736348588797,0.00023736,95630.0,95629.0,0.73157912]
[1736348589431,5.0,95649.0,95644.0,0.359108]
[1736348589634,0.00059207,95645.0,95644.0,0.49296038]
[1736348589864,0.00059207,95645.0,95644.0,0.55291794]
[1736348590077,0.00059207,95645.0,95644.0,0.65291794]
[1736348590302,4.36748319,95649.0,95648.0,0.35]
[1736348590505,3.96003694,95649.0,95648.0,1.13646194]
[1736348590731,3.81150694,95649.0,95648.0,1.13646194]
[1736348590953,3.81150694,95649.0,95648.0,0.37729976]
[1736348591160,3.81150694,95649.0,95648.0,0.64918176]
[1736348591405,3.81150694,95649.0,95648.0,1.12500227]
[1736348591615,3.73400694,95649.0,95648.0,1.12500227]
[1736348591817,3.73700694,95649.0,95648.0,1.1257606]
[1736348592036,3.73700694,95649.0,95648.0,0.9618006]
[1736348592250,3.71309694,95649.0,95648.0,1.14328565]
[1736348592454,3.71309694,95649.0,95648.0,0.77082175]
[1736348592716,3.71309694,95649.0,95648.0,0.77582175]
[1736348592920,3.71309694,95649.0,95648.0,0.62126612]
[1736348593104,3.71309694,95649.0,95648.0,0.42977002]
[1736348593348,3.71409694,95649.0,95648.0,0.25929976]
[1736348593522,3.71309694,95649.0,95648.0,0.25929976]
[1736348593772,3.71309694,95649.0,95648.0,0.26829976]
[1736348593989,2.03905179,95649.0,95648.0,1.09050932]
[1736348594197,8.53e-05,95675.0,95674.0,0.582043]
[1736348594406,0.0809,95710.0,95699.0,0.358988]
[1736348594636,0.0809,95710.0,95699.0,0.48628776]
[1736348594842,0.00024194,95700.0,95699.0,0.48628776]
[1736348595240,0.00024194,95700.0,95699.0,0.46328776]
[1736348595777,0.209006,95691.0,95660.0,0.29184392]
[1736348595979,0.00224194,95700.0,95693.0,0.00075773]
[1736348596181,0.208999,95694.0,95693.0,0.00075773]
[1736348597104,0.21918082,95730.0,95693.0,0.00075773]
[1736348597105,0.0818,95744.0,95699.0,0.023]
[1736348597321,0.0818,95744.0,95722.0,0.15]
[1736348597527,0.0818,95744.0,95725.0,0.358931]
[1736348597794,0.208897,95741.0,95725.0,0.15]
[1736348598144,0.0818,95744.0,95725.0,0.25429976]
[1736348598351,0.0060853,95726.0,95725.0,0.27719576]
[1736348598731,0.0060853,95726.0,95725.0,0.25419576]
[1736348598883,8.53e-05,95726.0,95725.0,0.25419576]
[1736348599063,8.53e-05,95726.0,95725.0,0.27719576]
[1736348599266,8.53e-05,95726.0,95725.0,0.37719576]
[1736348599462,8.53e-05,95726.0,95725.0,0.81815332]
[1736348599687,8.53e-05,95726.0,95725.0,0.81415332]
[1736348599893,3e-07,95726.0,95725.0,1.34100276]
[1736348600094,3e-07,95726.0,95725.0,0.92391105]
[1736348600498,8.53e-05,95745.0,95744.0,0.48189]
[1736348600699,8.53e-05,95745.0,95744.0,0.52314732]
[1736348600700,0.00059198,95745.0,95744.0,0.52314732]
[1736348600909,0.00059198,95745.0,95744.0,0.25429976]
[1736348601692,0.00059198,95745.0,95744.0,0.27712141]
[1736348602318,0.00059198,95745.0,95744.0,0.28012141]
[1736348602526,0.00059198,95745.0,95744.0,0.38912141]
[1736348602727,0.00059198,95745.0,95744.0,0.73194541]
[1736348602937,0.00059198,95745.0,95744.0,0.69362841]
[1736348603146,0.00059198,95745.0,95744.0,0.55952841]
[1736348603347,0.00059198,95745.0,95744.0,0.68012141]
[1736348603613,0.00059198,95745.0,95744.0,0.68912141]
[1736348603844,0.00059198,95745.0,95744.0,0.68612141]
[1736348604047,0.00059198,95745.0,95744.0,1.37848241]
[1736348604490,3e-07,95790.0,95754.0,1.148775]
[1736348604666,3e-07,95790.0,95751.0,0.1]
[1736348604667,0.00015226,95790.0,95789.0,0.35429976]
[1736348604868,0.00015226,95790.0,95789.0,1.13139176]
[1736348605063,0.00015226,95790.0,95789.0,1.15235691]
[1736348605327,0.00015226,95790.0,95789.0,0.29826491]
[1736348605702,0.00115226,95790.0,95789.0,0.27729976]
[1736348606273,0.00115226,95790.0,95789.0,0.25429976]
[1736348606518,0.00115226,95790.0,95789.0,0.15]
[1736348606735,0.00115226,95790.0,95789.0,0.009]
[1736348606939,0.00115226,95790.0,95762.0,0.20885]
[1736348606940,0.00015226,95790.0,95762.0,0.00075773]
[1736348607111,0.208818,95777.0,95763.0,0.10429976]
[1736348607311,0.208818,95777.0,95764.0,0.00104406]
[1736348607513,0.00015226,95790.0,95765.0,0.10429976]
[1736348607514,0.208811,95781.0,95765.0,0.10429976]
[1736348607713,0.208805,95783.0,95767.0,0.20884]
[1736348607945,0.00015226,95790.0,95769.0,0.15]
[1736348608141,0.00115226,95790.0,95772.0,0.15]
[1736348608413,0.00115226,95790.0,95777.0,0.15]
[1736348608629,0.00115226,95790.0,95779.0,0.15]
[1736348608849,0.00115226,95790.0,95777.0,0.10429976]
[1736348609079,0.1276851,95841.0,95791.0,0.1]
[1736348609288,0.1276851,95841.0,95810.0,0.10429976]
[1736348609496,0.208691,95836.0,95812.0,0.208742]
[1736348609730,0.29184392,95840.0,95813.0,0.10429976]
[1736348609945,0.1276851,95841.0,95814.0,0.10534327]
[1736348610149,0.1276851,95841.0,95821.0,0.15]
[1736348610384,0.1276851,95841.0,95821.0,0.25534311]
[1736348610589,0.1276851,95841.0,95821.0,0.27729976]
[1736348610590,0.00023689,95822.0,95821.0,0.27729976]
[1736348611187,0.00023689,95822.0,95821.0,0.27719576]
[1736348612079,0.00023689,95822.0,95821.0,0.28219576]
[1736348612252,0.00123689,95822.0,95821.0,0.38219576]
[1736348612487,0.00023689,95822.0,95821.0,0.38219576]
[1736348612899,0.00123689,95822.0,95821.0,0.39119576]
[1736348613361,0.00123689,95822.0,95821.0,0.29119576]
[1736348613799,0.00123689,95822.0,95821.0,0.26819576]
[1736348614428,8.9e-07,95822.0,95821.0,0.79496576]
[1736348614651,8.51e-05,95841.0,95831.0,0.5587]
[1736348614880,8.51e-05,95841.0,95831.0,0.66299976]
[1736348615099,8.51e-05,95841.0,95831.0,0.86493076]
[1736348615312,8.51e-05,95841.0,95831.0,0.66299976]
[1736348615538,8.51e-05,95841.0,95831.0,0.46299976]
[1736348615746,8.51e-05,95841.0,95831.0,0.56299976]
[1736348615951,0.00107,95832.0,95831.0,0.69799976]
[1736348616164,8.51e-05,95841.0,95840.0,0.581681]
[1736348616374,8.51e-05,95841.0,95840.0,0.68598076]
[1736348616804,8.51e-05,95841.0,95840.0,0.96521276]
[1736348617015,8.51e-05,95841.0,95840.0,0.82540776]
[1736348617200,8.51e-05,95841.0,95840.0,0.43598076]
[1736348617406,8.51e-05,95841.0,95840.0,0.53598076]
[1736348617640,8.51e-05,95841.0,95840.0,0.31298076]
[1736348617845,0.0474851,95841.0,95840.0,0.10429976]
[1736348618068,8.51e-05,95841.0,95840.0,0.10534307]
[1736348618273,8.51e-05,95841.0,95840.0,0.10534288]
[1736348618474,8.51e-05,95841.0,95840.0,0.12834288]
[1736348618687,8.51e-05,95841.0,95840.0,0.22834288]
[1736348618898,8.51e-05,95841.0,95840.0,0.22929976]
[1736348619168,8.51e-05,95841.0,95840.0,0.32929976]
[1736348619493,8.51e-05,95841.0,95840.0,0.88629976]
[1736348619671,8.51e-05,95841.0,95840.0,0.50429976]
[1736348619874,8.51e-05,95841.0,95840.0,0.51729976]
[1736348620130,8.51e-05,95841.0,95840.0,0.76729976]
[1736348620385,8.51e-05,95841.0,95840.0,0.98490476]
[1736348620632,8.51e-05,95841.0,95840.0,0.99390476]
[1736348620876,8.51e-05,95841.0,95840.0,1.02665476]
[1736348621086,8.51e-05,95841.0,95840.0,1.03241249]
[1736348621304,1e-07,95841.0,95840.0,1.05373406]
[1736348621505,1e-07,95841.0,95840.0,0.95612906]
[1736348621905,1e-07,95841.0,95840.0,0.95012906]
[1736348622185,1e-07,95841.0,95840.0,1.02145133]
[1736348622398,1e-07,95841.0,95840.0,0.69637133]
[1736348622782,1e-07,95841.0,95840.0,0.94937133]
[1736348622980,1e-07,95841.0,95840.0,0.94637133]
[1736348623455,1e-07,95841.0,95840.0,0.95537133]
[1736348623657,1e-07,95841.0,95840.0,1.01845133]
[1736348623868,4e-07,95848.0,95847.0,0.558665]
[1736348624074,8.51e-05,95871.0,95870.0,0.381615]
[1736348624277,0.00059128,95871.0,95870.0,0.46291476]
[1736348624604,0.00059128,95871.0,95870.0,0.46281076]
[1736348624835,0.00059128,95871.0,95870.0,1.17606276]
[1736348625047,2.8e-07,95871.0,95870.0,1.11373576]
[1736348625268,2.8e-07,95871.0,95870.0,0.68581076]
[1736348625620,2.8e-07,95871.0,95870.0,0.88781076]
[1736348626050,2.8e-07,95871.0,95870.0,1.08581076]
[1736348626267,5.4e-07,95880.0,95879.0,0.558596]
[1736348626481,2.7e-07,95880.0,95879.0,0.66271741]
[1736348626739,2.7e-07,95880.0,95879.0,0.74736813]
[1736348626965,2.7e-07,95880.0,95879.0,0.61343186]
[1736348627221,2.7e-07,95880.0,95879.0,0.48589576]
[1736348627427,2.7e-07,95880.0,95879.0,0.77367451]
[1736348627601,2.7e-07,95880.0,95879.0,0.90513841]
[1736348627861,2.7e-07,95880.0,95879.0,0.89489576]
[1736348628078,2.7e-07,95880.0,95879.0,1.09471741]
[1736348628312,0.0003062,95892.0,95891.0,0.48139165]
[1736348628518,0.0003062,95892.0,95891.0,0.48586976]
[1736348628721,0.0003062,95892.0,95891.0,0.51022836]
[1736348629351,0.0003062,95892.0,95891.0,0.96882063]
[1736348629633,0.0003062,95892.0,95891.0,1.44086063]
[1736348629841,0.0003062,95892.0,95891.0,1.44986063]
[1736348630066,0.0003062,95892.0,95891.0,0.75532486]
[1736348630288,0.0003062,95892.0,95891.0,0.72186976]
[1736348630495,0.0003062,95892.0,95891.0,0.11329976]
[1736348630702,0.0003062,95892.0,95891.0,0.11434235]
[1736348630926,0.07568455,95892.0,95891.0,0.11329976]
[1736348631135,0.07568455,95892.0,95891.0,0.009]
[1736348632221,0.00017835,95880.0,95879.0,0.00575773]
[1736348632416,0.00017835,95880.0,95879.0,0.10505749]
[1736348632672,0.25417235,95880.0,95879.0,0.00075773]
[1736348632877,0.25417235,95880.0,95840.0,0.20868]
[1736348632878,0.00017835,95851.0,95840.0,0.20868]
[1736348633082,0.00017835,95851.0,95839.0,0.01058013]
[1736348633292,0.00017835,95851.0,95850.0,0.40050618]
[1736348633504,0.1212,95861.0,95859.0,0.208638]
[1736348633707,0.1212,95861.0,95860.0,0.10429976]
[1736348634127,0.1212,95861.0,95860.0,0.25429976]
[1736348634329,0.12137835,95861.0,95860.0,0.10429976]
[1736348634781,0.00017835,95859.0,95858.0,0.00075707]
[1736348634984,0.208641,95858.0,95850.0,0.00050618]
[1736348635212,0.1212,95861.0,95850.0,0.00050618]
[1736348635213,0.00017835,95851.0,95850.0,0.00050618]
[1736348635623,0.07221835,95851.0,95850.0,0.00050618]
[1736348635829,0.00017835,95851.0,95850.0,0.00050618]
[1736348636256,0.00017835,95836.0,95833.0,0.20945115]
[1736348636442,0.00017835,95834.0,95833.0,0.00075715]
[1736348636692,0.00017835,95834.0,95833.0,0.10505691]
[1736348637337,0.00450546,95851.0,95848.0,0.208663]
[1736348637534,0.00050546,95851.0,95850.0,0.358659]
[1736348637742,0.00050546,95851.0,95850.0,0.46295876]
[1736348637945,0.00050546,95851.0,95850.0,1.96295876]
[1736348638146,0.00250546,95851.0,95850.0,1.96295876]
[1736348638348,0.00250546,95851.0,95850.0,0.46371591]
[1736348638528,0.00268381,95851.0,95850.0,0.46371591]
[1736348638771,0.00268381,95851.0,95850.0,0.25505691]
[1736348638772,0.00068381,95851.0,95850.0,0.25505691]
[1736348638979,0.00068381,95851.0,95850.0,0.25605691]
[1736348639398,0.00050546,95851.0,95850.0,0.27729976]
[1736348639726,0.00050546,95851.0,95850.0,0.27829976]
[1736348639930,0.00050546,95851.0,95850.0,0.10929976]
[1736348640129,0.00050546,95851.0,95850.0,0.10634274]
[1736348640532,0.00150546,95851.0,95850.0,0.11334274]
[1736348640756,0.00150546,95851.0,95850.0,0.11229976]
[1736348640963,0.00050546,95851.0,95850.0,0.10634285]
[1736348641162,0.00150546,95851.0,95850.0,0.11234285]
[1736348641316,0.00150546,95851.0,95850.0,0.11329976]
[1736348641537,0.00050546,95851.0,95850.0,0.10629976]
[1736348641821,0.00050546,95851.0,95850.0,0.10534286]
[1736348642027,0.04617835,95850.0,95849.0,0.00075715]
[1736348642252,0.00017835,95830.0,95825.0,0.4]
[1736348642512,0.04707835,95827.0,95826.0,0.00075711]
[1736348643007,0.0469,95827.0,95826.0,0.31376787]
[1736348643239,0.04707835,95827.0,95826.0,0.10505687]
[1736348643457,0.04707835,95827.0,95812.0,0.00075711]
[1736348643458,0.00017835,95813.0,95812.0,0.00075711]
[1736348643656,0.0469,95827.0,95812.0,0.10505687]
[1736348643860,0.00017835,95817.0,95813.0,0.10429976]
[1736348644072,0.00017835,95817.0,95812.0,0.00075711]
[1736348644073,0.00017835,95813.0,95812.0,0.00075711]
[1736348644308,0.00017835,95793.0,95783.0,0.208804]
[1736348644511,0.208771,95799.0,95784.0,0.10429976]
[1736348644512,0.00017835,95787.0,95784.0,0.10429976]
[1736348644716,0.00017835,95787.0,95786.0,0.00017]
[1736348644926,0.08047835,95787.0,95786.0,0.00017]
[1736348645131,0.12647835,95787.0,95786.0,0.00017]
[1736348646183,0.1263,95787.0,95786.0,0.00017]
[1736348646387,0.1263,95787.0,95786.0,0.10446976]
[1736348646816,0.00017835,95804.0,95787.0,0.15]
[1736348647022,0.00017835,95801.0,95788.0,0.10534347]
[1736348647219,0.00017835,95804.0,95788.0,0.10534347]
[1736348647428,0.00017835,95804.0,95789.0,0.208792]
[1736348647637,0.00017835,95804.0,95790.0,0.10534347]
[1736348647844,0.00017835,95804.0,95801.0,0.208765]
[1736348648049,0.00017835,95803.0,95787.0,0.15]
[1736348648253,0.00017835,95804.0,95788.0,0.10534351]
[1736348648488,0.00017835,95803.0,95788.0,0.10534351]
[1736348648691,0.003,95804.0,95791.0,0.25429976]
[1736348648911,0.003,95804.0,95790.0,0.29184392]
[1736348648912,0.003,95804.0,95803.0,0.48606076]
[1736348649116,0.0822,95828.0,95827.0,0.208709]
[1736348649336,0.0822,95828.0,95827.0,0.31300876]
[1736348649984,0.00017835,95824.0,95821.0,0.208722]
[1736348650201,0.00017835,95824.0,95811.0,0.15]
[1736348650202,0.0793,95871.0,95824.0,0.173]
[1736348650405,0.0793,95871.0,95817.0,0.3]
[1736348650406,0.0793,95871.0,95857.0,0.15]
[1736348650628,0.0793,95871.0,95858.0,0.10429976]
[1736348650838,0.208615,95870.0,95858.0,0.10429976]
[1736348651040,0.208615,95870.0,95859.0,0.208639]
[1736348651252,0.208615,95870.0,95838.0,0.4]
[1736348651253,0.0793,95871.0,95854.0,0.20865]
[1736348651254,0.208627,95865.0,95854.0,0.20865]
[1736348651457,0.0793,95871.0,95855.0,0.1053429]
[1736348651661,0.208615,95870.0,95855.0,0.1053429]
[1736348651862,0.20863,95864.0,95855.0,0.1053429]
[1736348652074,0.20863,95864.0,95830.0,0.29184392]
[1736348652075,0.208639,95860.0,95858.0,0.001]
[1736348652289,0.1,95857.0,95829.0,0.208703]
[1736348652501,0.208648,95855.0,95831.0,0.2087]
[1736348652721,0.0706,95856.0,95832.0,0.10429976]
[1736348652922,0.2,95852.0,95819.0,0.23342524]
[1736348653130,0.208692,95835.0,95801.0,0.208764]
[1736348653337,0.1,95836.0,95807.0,0.10429976]
[1736348653546,0.1309,95839.0,95821.0,0.10429976]
[1736348653759,0.1309,95839.0,95822.0,0.00104359]
[1736348653970,0.1309,95839.0,95827.0,0.208708]
[1736348654241,0.1309,95839.0,95831.0,0.2087]
[1736348654444,0.1309,95839.0,95832.0,0.10429976]
[1736348654871,0.1329,95839.0,95832.0,0.10429976]
[1736348655077,0.1329,95839.0,95832.0,0.31299776]
[1736348655409,0.41737,95838.0,95824.0,0.208713]
[1736348655603,0.1309,95839.0,95825.0,0.10429976]
[1736348655832,0.1309,95839.0,95832.0,0.002]
[1736348656274,0.208695,95834.0,95832.0,0.002]
[1736348656490,0.208695,95834.0,95824.0,0.00015173]
[1736348656491,0.308687,95837.0,95824.0,0.00015173]
[1736348656710,0.208713,95825.0,95824.0,0.00015173]
[1736348656924,0.279313,95825.0,95824.0,0.00015173]
[1736348657396,0.70771276,95825.0,95824.0,0.00015173]
[1736348657614,0.70771276,95825.0,95785.0,0.4]
[1736348657615,0.1,95811.0,95781.0,0.23342524]
[1736348657835,0.208765,95802.0,95787.0,0.208796]
[1736348658048,0.208718,95823.0,95791.0,0.208786]
[1736348658258,0.0706,95822.0,95797.0,0.208773]
[1736348658471,0.0706,95822.0,95792.0,0.10429976]
[1736348658472,0.208761,95804.0,95792.0,0.10429976]
[1736348658693,0.10429976,95822.0,95786.0,0.00032179]
[1736348658694,0.0757,95788.0,95786.0,0.00032179]
[1736348658897,0.0484,95787.0,95786.0,0.00032179]
[1736348659966,0.0484,95787.0,95786.0,0.10462155]
[1736348660618,0.0484,95787.0,95786.0,0.00032179]
[1736348661475,0.29184392,95840.0,95786.0,0.00032179]
[1736348661476,0.0475,95806.0,95803.0,0.208761]
[1736348661705,0.0475,95806.0,95787.0,0.15]
[1736348661706,0.09333134,95867.0,95841.0,0.09999965]
[1736348661913,0.09333134,95867.0,95852.0,0.10429976]
[1736348662128,0.01029002,95874.0,95853.0,0.15]
[1736348662337,0.01029002,95874.0,95855.0,0.15]
[1736348662539,0.01029002,95874.0,95856.0,0.10429976]
[1736348662746,0.0777,95879.0,95855.0,0.10429976]
[1736348663045,0.0706,95874.0,95855.0,0.10429976]
[1736348663256,0.208622,95867.0,95828.0,0.4]
[1736348663457,0.41724,95868.0,95853.0,0.001]
[1736348663663,0.208641,95859.0,95853.0,0.001]
[1736348663886,0.20865,95854.0,95853.0,0.001]
[1736348664911,0.20862,95868.0,95853.0,0.001]
[1736348665155,0.1927,95863.0,95854.0,0.10429976]
[1736348665389,0.1927,95863.0,95855.0,0.208648]
[1736348665582,0.002,95854.0,95831.0,0.15]
[1736348665790,0.002,95854.0,95850.0,0.208657]
[1736348665962,0.003,95854.0,95850.0,0.208657]
[1736348666192,0.003,95854.0,95832.0,0.10429976]
[1736348666367,0.1241,95863.0,95856.0,0.208644]
[1736348666566,0.1241,95863.0,95851.0,0.208656]
[1736348666744,0.208633,95862.0,95851.0,0.208656]
[1736348666961,0.1241,95863.0,95851.0,0.208656]
[1736348667161,0.208633,95862.0,95851.0,0.208656]
[1736348667368,0.1241,95863.0,95852.0,0.208654]
[1736348667579,0.208633,95862.0,95852.0,0.208654]
[1736348667784,0.1221,95863.0,95832.0,0.10429976]
[1736348667989,0.1221,95863.0,95857.0,0.208642]
[1736348668256,0.1221,95863.0,95854.0,0.20865]
[1736348668461,0.1221,95863.0,95850.0,0.006]
[1736348668631,0.1221,95863.0,95854.0,0.10429976]
[1736348668862,0.1221,95863.0,95847.0,0.208664]
[1736348669201,0.417266,95862.0,95848.0,0.10429976]
[1736348669401,0.208633,95862.0,95849.0,0.208661]
[1736348669621,0.208633,95862.0,95849.0,0.31296076]
[1736348669838,0.1231,95863.0,95850.0,0.10429976]
[1736348670453,0.208633,95862.0,95850.0,0.10429976]
[1736348670693,0.208635,95861.0,95854.0,0.001]
[1736348671385,0.0706,95871.0,95854.0,0.001]
[1736348671386,0.001,95862.0,95856.0,0.10429976]
[1736348671594,0.001,95862.0,95854.0,0.001]
[1736348671595,0.001,95862.0,95861.0,0.10429976]
[1736348671801,0.00050555,95879.0,95862.0,0.15]
[1736348672031,0.00050555,95879.0,95878.0,0.358598]
[1736348672253,0.00050555,95879.0,95878.0,0.46289776]
[1736348672722,0.00050555,95879.0,95878.0,0.10429976]
[1736348672930,0.00050555,95879.0,95865.0,0.4]
[1736348673137,0.00050555,95879.0,95866.0,0.25429976]
[1736348673350,0.208598,95878.0,95866.0,0.10429976]
[1736348673550,0.00150555,95879.0,95862.0,0.007]
[1736348673668,0.0481,95878.0,95858.0,0.20864]
[1736348673864,0.2086,95877.0,95860.0,0.208637]
[1736348674114,0.20861,95873.0,95860.0,0.31293676]
[1736348674312,0.208613,95871.0,95860.0,0.10429976]
[1736348674725,0.208624,95867.0,95849.0,0.20866]
[1736348674930,0.290024,95866.0,95862.0,0.002]
[1736348675128,0.390024,95866.0,95862.0,0.002]
[1736348675534,0.0814,95866.0,95843.0,0.00104329]
[1736348675726,0.208636,95861.0,95849.0,0.20866]
[1736348675949,0.0814,95866.0,95856.0,0.15]
[1736348676125,0.0814,95866.0,95864.0,0.208627]
[1736348676339,0.0834,95866.0,95864.0,0.208627]
[1736348676536,0.0834,95866.0,95857.0,0.31294276]
[1736348676704,0.0814,95866.0,95861.0,0.208634]
[1736348676906,0.0814,95866.0,95862.0,0.10429976]
[1736348677107,0.0814,95866.0,95851.0,0.208657]
[1736348677108,0.208626,95865.0,95851.0,0.208657]
[1736348677310,0.208626,95865.0,95826.0,0.23342524]
[1736348677311,0.208626,95865.0,95830.0,0.29184392]
[1736348677477,0.0814,95866.0,95837.0,0.10534298]
[1736348677677,0.0814,95866.0,95864.0,0.003]
[1736348677973,0.208626,95865.0,95864.0,0.003]
[1736348678384,0.208626,95865.0,95785.0,0.0128]
[1736348678385,0.1,95859.0,95835.0,0.20869]
[1736348678565,0.1,95859.0,95835.0,0.10429976]
[1736348679096,0.0716,95858.0,95835.0,0.10429976]
[1736348679300,0.208644,95857.0,95835.0,0.31299076]
[1736348679593,0.1,95857.0,95830.0,0.208702]
[1736348679761,0.0774,95831.0,95818.0,0.208727]
[1736348679993,0.0774,95831.0,95820.0,0.208724]
[1736348680200,0.0762,95831.0,95822.0,0.20872]
[1736348680461,0.0762,95831.0,95826.0,0.208711]
[1736348680884,0.0762,95831.0,95823.0,0.31301576]
[1736348681088,0.1482,95865.0,95829.0,0.15]
[1736348681301,0.0716,95855.0,95830.0,0.39718698]
[1736348681504,0.0716,95855.0,95839.0,0.208683]
[1736348681705,0.1482,95865.0,95832.0,0.208698]
[1736348681706,0.002,95857.0,95841.0,0.208678]
[1736348681913,0.002,95857.0,95842.0,0.10534299]
[1736348682117,0.0479,95886.0,95854.0,0.15]
[1736348682329,0.208592,95881.0,95869.0,0.208615]
[1736348682530,0.20846645,95881.0,95870.0,0.10429976]
[1736348682909,0.208972,95881.0,95871.0,0.208613]
[1736348683112,0.208972,95881.0,95872.0,0.10429976]
[1736348683321,0.00050555,95881.0,95873.0,0.15104297]
[1736348683532,0.00050555,95881.0,95880.0,0.10429976]
[1736348683736,0.00050555,95881.0,95880.0,0.10534242]
[1736348684174,0.00250555,95881.0,95880.0,0.10534242]
[1736348684368,0.00250555,95881.0,95880.0,0.25534242]
[1736348684572,0.00250555,95881.0,95880.0,0.25429976]
[1736348684780,0.00250555,95881.0,95880.0,0.27729976]
[1736348685569,0.00100055,95881.0,95880.0,1.05299476]
[1736348685780,0.00100055,95881.0,95880.0,0.94880423]
[1736348685986,0.0003062,95892.0,95885.0,0.15]
[1736348686186,0.00023661,95887.0,95886.0,0.10429976]
[1736348686757,0.00023661,95887.0,95880.0,0.004]
[1736348686948,0.258384,95885.0,95878.0,0.23342524]
[1736348687198,0.208594,95880.0,95864.0,0.208627]
[1736348687397,0.208591,95881.0,95866.0,0.31292376]
[1736348687599,0.209591,95881.0,95880.0,0.009]
[1736348687841,0.208601,95877.0,95866.0,0.31292376]
[1736348688048,0.0716,95882.0,95574.0,0.01631832]
[1736348688049,0.20862,95868.0,95853.0,0.208651]
[1736348688174,0.0498,95885.0,95830.0,0.53584311]
[1736348688175,0.0498,95885.0,95867.0,0.10429976]
[1736348688379,0.0486,95885.0,95868.0,0.15104295]
[1736348688579,0.0486,95885.0,95870.0,0.15]
[1736348688802,0.0486,95885.0,95877.0,0.208598]
[1736348689037,0.0486,95885.0,95879.0,0.208596]
[1736348689234,0.0474,95885.0,95880.0,0.10429976]
[1736348689435,0.0474,95885.0,95881.0,0.208591]
[1736348689640,0.0474,95885.0,95883.0,0.208587]
[1736348689813,0.0484,95885.0,95882.0,0.10429976]
[1736348690027,0.0484,95885.0,95883.0,0.208587]
[1736348690234,0.0474,95885.0,95883.0,0.208587]
[1736348690434,0.0484,95885.0,95884.0,0.10429976]
[1736348690607,0.0494,95885.0,95884.0,0.10429976]
[1736348690812,0.0484,95885.0,95884.0,0.10429976]
[1736348691929,0.0484,95885.0,95875.0,0.208603]
[1736348692142,0.0484,95885.0,95876.0,0.10429976]
[1736348692346,0.0474,95885.0,95876.0,0.10429976]
[1736348692547,0.0474,95885.0,95877.0,0.2086]
[1736348692771,0.00023661,95887.0,95886.0,0.358581]
[1736348692943,0.00023661,95887.0,95886.0,0.46288076]
[1736348693719,0.00023661,95887.0,95886.0,0.31288076]
[1736348694478,0.00023661,95887.0,95886.0,0.31788076]
[1736348694710,0.00023661,95887.0,95886.0,0.10929976]
[1736348694925,0.08103661,95887.0,95886.0,0.005]
[1736348695112,0.12603661,95887.0,95886.0,0.005]
[1736348695764,0.208596,95879.0,95866.0,0.208624]
[1736348695987,0.280196,95879.0,95868.0,0.20862]
[1736348696201,0.280196,95879.0,95864.0,0.208628]
[1736348696202,0.0716,95879.0,95857.0,0.208644]
[1736348696413,0.208609,95873.0,95857.0,0.208644]
[1736348696834,0.208622,95867.0,95853.0,0.208652]
[1736348696967,0.208622,95867.0,95848.0,0.208661]
[1736348697184,0.208622,95867.0,95852.0,0.208654]
[1736348697504,0.208622,95867.0,95844.0,0.208671]
[1736348697505,0.2086311,95902.0,95873.0,0.208608]
[1736348697703,4e-05,95900.0,95878.0,0.208597]
[1736348697905,0.208562,95895.0,95878.0,0.31289676]
[1736348698130,0.12603661,95887.0,95886.0,0.208581]
[1736348698336,0.12603661,95887.0,95858.0,0.15]
[1736348698532,0.12603661,95887.0,95886.0,0.10429976]
[1736348699748,0.12603661,95887.0,95878.0,0.208597]
[1736348699952,0.12603661,95887.0,95879.0,0.10429976]
[1736348700157,0.13503661,95887.0,95886.0,0.001]
[1736348700761,0.13503661,95887.0,95886.0,0.10529976]
[1736348701141,0.00923661,95887.0,95886.0,0.59385876]
[1736348701365,0.01323661,95887.0,95886.0,0.28877999]
[1736348701567,0.01323661,95887.0,95886.0,0.68877999]
[1736348701777,0.00923661,95887.0,95886.0,0.65529976]
[1736348701978,0.00923661,95887.0,95886.0,0.78963976]
[1736348702177,0.01323661,95887.0,95886.0,0.77853976]
[1736348702391,6.1e-07,95887.0,95886.0,0.67829976]
[1736348702771,0.0003062,95892.0,95886.0,0.67829976]
[1736348702772,0.0003062,95892.0,95891.0,0.35857]
[1736348702926,0.0003062,95892.0,95891.0,0.71548676]
[1736348703156,0.0003062,95892.0,95891.0,0.74675423]
[1736348703464,0.0003062,95892.0,95891.0,0.48586976]
[1736348703650,0.0003062,95892.0,95891.0,0.10429976]
[1736348704048,0.0003062,95892.0,95891.0,0.10534238]
[1736348704328,0.0013062,95892.0,95891.0,0.11434238]
[1736348704526,0.0003062,95892.0,95891.0,0.12834238]
[1736348704738,0.0003062,95892.0,95891.0,0.11034238]
[1736348705163,0.0003062,95892.0,95874.0,0.23342524]
[1736348705368,0.0003062,95892.0,95891.0,0.004]
[1736348706045,0.0003062,95892.0,95891.0,0.11729976]
[1736348706046,0.0013062,95892.0,95891.0,0.11729976]
[1736348706317,0.0003062,95892.0,95891.0,0.10829976]
[1736348706525,0.0003062,95892.0,95891.0,0.10934248]
[1736348706736,0.0003062,95892.0,95891.0,0.10634248]
[1736348706947,0.0003062,95892.0,95891.0,0.10534248]
[1736348707149,0.0003062,95892.0,95891.0,0.10929976]
[1736348707362,0.0013062,95892.0,95891.0,0.11829976]
[1736348707572,0.0003062,95892.0,95891.0,0.31286976]
[1736348707772,0.0003062,95892.0,95891.0,0.48586976]
[1736348707979,0.0013062,95892.0,95891.0,0.49786976]
[1736348708183,0.0013062,95892.0,95891.0,0.60591376]
[1736348708388,0.0013062,95892.0,95891.0,0.49486976]
[1736348708610,0.0013062,95892.0,95891.0,0.728295]
[1736348708814,0.0013062,95892.0,95891.0,0.733295]
[1736348709176,0.0003062,95892.0,95891.0,0.59950376]
[1736348709396,0.0003062,95892.0,95891.0,0.49086976]
[1736348709579,0.0013062,95892.0,95891.0,0.61323476]
[1736348709813,0.0003062,95892.0,95891.0,0.49086976]
[1736348710017,0.0003062,95892.0,95891.0,3.849095]
[1736348710387,0.0003062,95892.0,95891.0,3.835095]
[1736348710768,0.0003062,95892.0,95891.0,3.821095]
[1736348710958,0.0003062,95892.0,95891.0,3.59666976]
[1736348711164,0.0003062,95892.0,95891.0,3.60166976]
[1736348711368,2e-07,95892.0,95891.0,4.40745641]